bitfinex-derivatives/quotes_BTCF0:USTF0_20250313
["timestamp","ask_amount","ask_price","bid_price","bid_amount"]
[1741875022219,0.01411883,81904.0,81893.0,0.12230351]
[1741875022220,0.1221097,81902.0,81901.0,0.1221054]
[1741875022530,0.1221097,81902.0,81893.0,0.00018321]
[1741875022531,0.1221188,81894.0,81893.0,0.21528321]
[1741875022722,0.1221188,81894.0,81893.0,0.33740351]
[1741875023024,0.002,81894.0,81893.0,0.00018321]
[1741875023225,0.1241188,81894.0,81893.0,0.00018321]
[1741875023527,0.1221188,81894.0,81893.0,0.12230351]
[1741875024127,0.1221188,81894.0,81893.0,0.13450446]
[1741875024333,0.1241079,81902.0,81901.0,0.1221083]
[1741875025018,0.002,81902.0,81901.0,0.14822143]
[1741875025220,0.00018321,81910.0,81909.0,0.1220964]
[1741875025531,0.00018321,81910.0,81909.0,0.15419043]
[1741875025532,0.12227811,81910.0,81909.0,0.15419043]
[1741875026023,0.12227811,81910.0,81909.0,0.04881325]
[1741875026223,0.1191173,81895.0,81894.0,0.14244276]
[1741875026414,0.1221173,81895.0,81894.0,0.414]
[1741875026619,0.1221188,81894.0,81893.0,0.00018321]
[1741875027023,0.1221188,81894.0,81893.0,0.12230351]
[1741875027223,0.1221104,81901.0,81900.0,0.1221069]
[1741875027425,0.1221188,81895.0,81894.0,0.1831744]
[1741875027827,0.1231188,81895.0,81894.0,0.6003744]
[1741875028125,0.00318321,81910.0,81909.0,0.1220964]
[1741875028426,0.12527811,81910.0,81909.0,0.1220964]
[1741875028631,0.12527811,81910.0,81907.0,0.061049]
[1741875028632,0.1220964,81909.0,81908.0,0.5392964]
[1741875028829,0.1220964,81909.0,81908.0,0.5392979]
[1741875029224,0.00318321,81910.0,81908.0,0.5392979]
[1741875029420,0.00018321,81910.0,81909.0,0.1220964]
[1741875029726,1e-08,81910.0,81909.0,0.56372201]
[1741875029930,0.00183217,81927.0,81926.0,0.1220711]
[1741875030121,0.1415876,81935.0,81934.0,0.1220592]
[1741875030434,0.1415876,81935.0,81934.0,0.14235653]
[1741875030730,0.1415876,81935.0,81934.0,0.1220592]
[1741875030932,0.2636453,81935.0,81934.0,0.1220592]
[1741875031128,0.1415876,81935.0,81934.0,0.1220592]
[1741875031322,0.1415876,81935.0,81934.0,0.14240664]
[1741875031921,0.2636453,81935.0,81934.0,0.14240664]
[1741875032124,0.2636453,81935.0,81934.0,0.1220592]
[1741875032323,0.1415876,81935.0,81934.0,0.14293648]
[1741875032828,0.2636453,81935.0,81934.0,0.02087728]
[1741875033033,0.1220681,81929.0,81928.0,0.1830907]
[1741875033227,0.1220681,81929.0,81928.0,0.6317812]
[1741875033420,0.1445876,81935.0,81934.0,0.1220592]
[1741875033625,0.1445876,81935.0,81934.0,0.14311218]
[1741875034025,0.003,81935.0,81934.0,0.14311218]
[1741875034427,0.0610267,81938.0,81934.0,0.04794035]
[1741875034631,0.0610267,81938.0,81928.0,0.4278]
[1741875034632,0.1220562,81936.0,81935.0,0.23445298]
[1741875034829,0.061026,81941.0,81926.0,0.00018309]
[1741875034830,0.1220696,81927.0,81926.0,0.00018309]
[1741875035034,0.0610312,81932.0,81924.0,0.0610347]
[1741875035035,0.0610366,81925.0,81924.0,0.0610347]
[1741875035229,0.1831134,81925.0,81924.0,0.0610347]
[1741875035434,0.2048,81926.0,81917.0,0.0610422]
[1741875035732,0.1831441,81911.0,81910.0,0.1220934]
[1741875035939,0.0610468,81911.0,81910.0,0.1220934]
[1741875036233,0.00018309,81919.0,81918.0,0.122083]
[1741875036437,0.12226459,81919.0,81918.0,0.122083]
[1741875036833,0.0610512,81905.0,81902.0,0.00018309]
[1741875037036,0.1221054,81903.0,81902.0,0.00018309]
[1741875037336,0.2136,81904.0,81902.0,0.12228999]
[1741875037525,0.2136,81904.0,81903.0,0.1221054]
[1741875037927,0.2136,81904.0,81902.0,0.00018309]
[1741875038231,0.1221054,81903.0,81902.0,0.00018309]
[1741875038435,0.1221054,81903.0,81902.0,0.13694028]
[1741875039232,0.2146,81904.0,81903.0,0.1221054]
[1741875039435,0.2146,81904.0,81903.0,0.3421054]
[1741875039638,0.3357039,81904.0,81903.0,0.1221054]
[1741875039839,0.17048,81911.0,81902.0,0.12228999]
[1741875039840,0.00018309,81919.0,81904.0,0.0610516]
[1741875040149,0.0610484,81909.0,81905.0,0.01276851]
[1741875040337,0.1221009,81906.0,81905.0,0.13655636]
[1741875040547,0.4321,81908.0,81907.0,0.1220994]
[1741875040835,1.41932,81940.0,81907.0,0.0126569]
[1741875040836,1.69735171,81940.0,81907.0,0.0126569]
[1741875041140,0.1220954,81911.0,81910.0,0.1220927]
[1741875041540,0.1220964,81909.0,81908.0,0.13654966]
[1741875041928,0.209,81910.0,81909.0,0.1220964]
[1741875042133,0.2016,81917.0,81916.0,0.122086]
[1741875042329,9e-08,81919.0,81918.0,0.122083]
[1741875042540,0.17044,81941.0,81918.0,0.122083]
[1741875042541,0.17044,81953.0,81950.0,0.1220353]
[1741875042732,0.209,81955.0,81950.0,0.1220353]
[1741875042933,0.2636214,81951.0,81950.0,0.1220353]
[1741875043247,0.2636205,81953.0,81952.0,0.1220324]
[1741875043538,0.2636205,81953.0,81952.0,0.13485072]
[1741875043739,0.4726205,81953.0,81952.0,0.1220324]
[1741875043938,0.0610206,81947.0,81946.0,0.1220404]
[1741875044142,0.1220379,81949.0,81948.0,0.1220353]
[1741875044332,0.005,81951.0,81950.0,0.1220353]
[1741875044749,0.1270338,81951.0,81950.0,0.1220353]
[1741875044937,0.1270338,81951.0,81950.0,0.01454064]
[1741875045538,0.005,81951.0,81950.0,0.13657594]
[1741875045747,0.3563476,81953.0,81950.0,0.13657594]
[1741875045944,0.5436375,81953.0,81952.0,0.1220324]
[1741875046446,0.3555876,81953.0,81952.0,0.1220324]
[1741875046741,0.4776185,81953.0,81952.0,0.13657304]
[1741875046932,0.3555876,81953.0,81952.0,0.13657304]
[1741875047133,0.3605876,81953.0,81952.0,0.13657304]
[1741875047330,0.3360309,81953.0,81952.0,0.14911531]
[1741875047844,0.3360309,81953.0,81952.0,0.02708291]
[1741875048231,0.219,81953.0,81952.0,0.14911531]
[1741875048433,0.3410309,81953.0,81952.0,0.14911531]
[1741875048636,0.3410309,81953.0,81952.0,0.02708291]
[1741875049041,0.3410309,81953.0,81952.0,0.04996618]
[1741875049441,0.219,81953.0,81930.0,0.01982527]
[1741875049744,0.219,81953.0,81910.0,0.27803171]
[1741875049745,0.0610257,81940.0,81931.0,0.03221782]
[1741875049932,0.1934,81939.0,81938.0,0.1220532]
[1741875050242,0.3279324,81952.0,81951.0,0.1220338]
[1741875050445,0.3279324,81952.0,81951.0,0.13442494]
[1741875051435,0.3329324,81952.0,81951.0,0.13442494]
[1741875052032,0.3329324,81952.0,81951.0,0.01239114]
[1741875052234,0.3329324,81952.0,81951.0,0.01231036]
[1741875053044,0.1220443,81944.0,81943.0,0.00018309]
[1741875053434,0.1220443,81944.0,81915.0,0.17036]
[1741875053435,0.15,81944.0,81910.0,0.00926333]
[1741875053747,0.1831228,81922.0,81921.0,0.2441458]
[1741875053946,0.231392,81931.0,81930.0,0.1220651]
[1741875054240,0.353448,81936.0,81935.0,0.1220577]
[1741875054438,0.0610253,81940.0,81933.0,0.0610296]
[1741875054637,0.1220534,81938.0,81937.0,0.1220517]
[1741875054943,0.1220534,81938.0,81937.0,0.3477384]
[1741875055338,0.0610253,81940.0,81939.0,0.1220517]
[1741875055646,0.0610253,81940.0,81939.0,0.1420384]
[1741875056150,0.0610253,81940.0,81939.0,0.0199867]
[1741875056347,0.00518309,81944.0,81925.0,0.2057]
[1741875056646,0.00018309,81944.0,81926.0,0.0610354]
[1741875056847,0.1220696,81927.0,81926.0,0.0610344]
[1741875057143,0.1220875,81915.0,81914.0,0.3277851]
[1741875057347,0.01366181,81916.0,81900.0,0.17036]
[1741875057551,0.1831615,81905.0,81904.0,0.1831424]
[1741875057848,0.1831615,81905.0,81904.0,0.14184025]
[1741875058047,0.1831615,81905.0,81904.0,0.01973635]
[1741875058447,0.1831615,81905.0,81904.0,0.14184025]
[1741875058751,0.2051,81907.0,81906.0,0.1221009]
[1741875059051,0.3271994,81907.0,81906.0,0.14183725]
[1741875059241,0.2051,81907.0,81906.0,0.14183725]
[1741875059549,0.3271994,81907.0,81906.0,0.14183725]
[1741875059750,0.2051,81907.0,81906.0,0.14183725]
[1741875060047,0.3301994,81907.0,81906.0,0.14183725]
[1741875060251,0.3301994,81907.0,81906.0,0.01973635]
[1741875060440,0.52846,81907.0,81876.0,0.1988]
[1741875060644,0.1221322,81885.0,81867.0,0.82170466]
[1741875060844,0.1221397,81880.0,81867.0,0.82170466]
[1741875061045,0.1221441,81877.0,81876.0,0.21845618]
[1741875061244,0.1221441,81877.0,81876.0,0.34060178]
[1741875061444,0.3859152,81879.0,81876.0,0.27952838]
[1741875061640,0.00018309,81888.0,81876.0,0.27952838]
[1741875061846,0.00018309,81888.0,81887.0,0.1221292]
[1741875062042,0.00183262,81902.0,81886.0,0.3988]
[1741875062238,0.00183262,81902.0,81901.0,0.1221083]
[1741875062440,0.1952,81937.0,81901.0,0.02]
[1741875062653,0.1831125,81926.0,81925.0,0.1220714]
[1741875062954,0.34766214,81934.0,81895.0,0.4194]
[1741875063253,0.1221043,81906.0,81905.0,0.1220987]
[1741875063446,0.0610504,81907.0,81904.0,0.18738309]
[1741875063651,0.1221024,81905.0,81904.0,0.00018309]
[1741875063854,0.3239009,81906.0,81904.0,0.00018309]
[1741875064053,0.2018,81906.0,81904.0,0.00018309]
[1741875064256,0.2018,81906.0,81905.0,0.1221024]
[1741875064552,0.1251009,81906.0,81905.0,0.4426506]
[1741875064748,0.003,81906.0,81904.0,0.00018309]
[1741875064950,0.4642516,81905.0,81874.0,0.0610741]
[1741875065144,0.1221322,81886.0,81885.0,0.1221314]
[1741875065344,0.1221307,81886.0,81885.0,0.1984]
[1741875065847,0.01360083,81890.0,81872.0,0.2623757]
[1741875066051,0.1832198,81878.0,81877.0,0.1832053]
[1741875066245,0.00018309,81890.0,81884.0,0.1221337]
[1741875066552,0.00018309,81890.0,81889.0,0.1221262]
[1741875066945,0.002,81906.0,81905.0,0.1221024]
[1741875067352,0.1241009,81906.0,81905.0,0.1221024]
[1741875067552,0.1887,81910.0,81904.0,0.4028]
[1741875067853,0.13223104,81906.0,81905.0,0.1831529]
[1741875068154,0.25014099,81923.0,81922.0,0.122077]
[1741875068747,0.122083,81918.0,81917.0,0.4106]
[1741875069143,0.1220875,81915.0,81914.0,0.00018309]
[1741875069951,0.25114099,81923.0,81914.0,0.00018309]
[1741875070155,0.37321659,81923.0,81922.0,0.122077]
[1741875070346,0.0610413,81919.0,81916.0,0.0610429]
[1741875070549,0.25114099,81923.0,81914.0,0.00018309]
[1741875070550,0.1220875,81915.0,81914.0,0.00018309]
[1741875071363,0.1220875,81915.0,81914.0,0.38298309]
[1741875071549,0.1220875,81915.0,81914.0,0.38279443]
[1741875071855,0.1220875,81915.0,81911.0,0.1220928]
[1741875072155,0.005,81918.0,81917.0,0.1220845]
[1741875072350,0.005,81923.0,81917.0,0.1220845]
[1741875072553,0.00018309,81926.0,81923.0,0.0610374]
[1741875072745,9e-08,81926.0,81925.0,0.1220726]
[1741875072946,9e-08,81926.0,81925.0,0.4020726]
[1741875073157,9e-08,81926.0,81925.0,0.7223926]
[1741875073654,0.25014099,81958.0,81925.0,0.60032]
[1741875073852,0.122033,81953.0,81952.0,0.1220287]
[1741875074046,0.0610125,81957.0,81926.0,0.4194]
[1741875074047,0.1220407,81948.0,81947.0,0.1220386]
[1741875074356,0.1220407,81948.0,81938.0,0.1891]
[1741875074357,0.25014099,81958.0,81957.0,0.1220249]
[1741875074954,0.37216439,81958.0,81957.0,0.1220249]
[1741875075646,0.25514099,81958.0,81957.0,0.1220249]
[1741875075853,0.25514099,81958.0,81957.0,0.3210249]
[1741875076458,0.38216439,81958.0,81957.0,0.3220249]
[1741875076756,0.26014099,81958.0,81957.0,0.3220249]
[1741875076948,0.26014099,81958.0,81957.0,0.3320249]
[1741875077757,0.0609827,81997.0,81957.0,0.3320249]
[1741875077758,0.12382023,81981.0,81963.0,0.122016]
[1741875077960,0.00183103,81981.0,81980.0,0.1219907]
[1741875078562,0.00183103,81981.0,81980.0,0.4892907]
[1741875078765,0.12382023,81981.0,81980.0,0.4892907]
[1741875078966,0.1829918,81979.0,81978.0,0.1219928]
[1741875079165,0.00283103,81981.0,81980.0,0.1219907]
[1741875079552,0.12482023,81981.0,81978.0,0.0609962]
[1741875079853,0.1219922,81979.0,81978.0,0.0609962]
[1741875080254,0.1219922,81979.0,81973.0,0.3673]
[1741875080454,0.1220011,81973.0,81972.0,0.00018297]
[1741875080663,0.1220011,81973.0,81972.0,0.12218557]
[1741875081157,0.1220011,81973.0,81972.0,0.00018297]
[1741875081356,0.3025946,81978.0,81977.0,0.1219951]
[1741875082151,0.3025946,81978.0,81973.0,0.0610001]
[1741875082353,0.3025946,81978.0,81972.0,7e-08]
[1741875082354,0.1220011,81973.0,81972.0,7e-08]
[1741875082557,0.0610293,81937.0,81934.0,0.1220524]
[1741875082752,0.0610293,81937.0,81935.0,0.391]
[1741875083053,0.1806,81936.0,81934.0,0.1220524]
[1741875083256,0.0610288,81935.0,81931.0,0.29076598]
[1741875083456,0.0610288,81935.0,81931.0,0.59591618]
[1741875083457,0.1220621,81932.0,81931.0,0.59591618]
[1741875083664,0.1220621,81932.0,81931.0,0.29076598]
[1741875083968,0.1220845,81917.0,81916.0,0.00064]
[1741875084263,0.1831656,81901.0,81900.0,0.122106]
[1741875084658,0.1871,81908.0,81880.0,0.38276377]
[1741875084859,0.0610646,81888.0,81887.0,0.0610642]
[1741875085464,0.1221382,81882.0,81881.0,0.1221377]
[1741875085667,0.1221382,81882.0,81850.0,0.27803171]
[1741875085668,0.1832152,81879.0,81878.0,0.1221421]
[1741875085862,0.0610711,81879.0,81876.0,0.4345884]
[1741875086166,0.1201441,81877.0,81876.0,0.5567325]
[1741875086363,0.1201441,81877.0,81876.0,0.4345884]
[1741875086555,0.15,81877.0,81867.0,0.50952399]
[1741875086761,0.0610735,81875.0,81842.0,0.3798]
[1741875086964,0.122165,81863.0,81842.0,0.1952]
[1741875087170,0.292405,81863.0,81857.0,0.1221727]
[1741875087355,0.290405,81863.0,81850.0,0.061092]
[1741875087558,0.290405,81863.0,81855.0,0.1221759]
[1741875087869,0.290405,81863.0,81847.0,0.0610944]
[1741875088066,0.290405,81863.0,81853.0,0.0610898]
[1741875088267,0.290405,81863.0,81849.0,0.122185]
[1741875088464,0.122177,81855.0,81846.0,0.1221894]
[1741875088766,0.122177,81855.0,81854.0,1.34701328]
[1741875089158,0.122177,81855.0,81854.0,0.25795994]
[1741875089672,0.001,81855.0,81854.0,0.25795994]
[1741875089868,0.001,81855.0,81854.0,0.38013844]
[1741875090360,0.001,81855.0,81854.0,0.1221785]
[1741875090765,0.001,81855.0,81853.0,0.5069785]
[1741875090766,0.1221785,81854.0,81853.0,0.5069785]
[1741875090964,0.1221934,81844.0,81843.0,0.0610967]
[1741875091269,0.1222035,81841.0,81840.0,0.1221925]
[1741875091466,0.002,81855.0,81834.0,0.3899]
[1741875091661,0.0611024,81838.0,81834.0,0.3899]
[1741875091863,0.1222068,81835.0,81834.0,0.5121038]
[1741875092267,0.1222068,81835.0,81834.0,0.1975]
[1741875092562,0.2546024,81837.0,81828.0,0.1833144]
[1741875092563,0.1833306,81829.0,81828.0,0.1833144]
[1741875092769,0.0591084,81829.0,81828.0,0.1833144]
[1741875093460,0.0611059,81832.0,81828.0,0.1833144]
[1741875093461,0.1833107,81835.0,81834.0,0.1222053]
[1741875093660,0.1222083,81834.0,81833.0,0.189]
[1741875093865,0.0611036,81835.0,81826.0,0.0611073]
[1741875094066,0.19368332,81837.0,81833.0,0.1222098]
[1741875094067,0.1814,81834.0,81833.0,0.1222098]
[1741875094263,0.1814,81834.0,81828.0,0.189]
[1741875094264,0.1814,81834.0,81832.0,0.1898]
[1741875094469,0.1222098,81833.0,81832.0,0.3112098]
[1741875094765,0.0611173,81817.0,81816.0,0.122229]
[1741875095069,0.1833466,81819.0,81818.0,0.1222292]
[1741875095664,0.1833466,81819.0,81815.0,0.189]
[1741875095665,0.0611154,81819.0,81815.0,0.189]
[1741875095864,0.1222352,81816.0,81815.0,0.189]
[1741875096070,0.1833764,81807.0,81805.0,0.0611243]
[1741875096372,0.1803764,81807.0,81806.0,0.1222436]
[1741875096571,0.1222516,81805.0,81804.0,0.385]
[1741875096873,0.1222576,81801.0,81800.0,0.1]
[1741875097275,0.1222576,81801.0,81800.0,0.2222591]
[1741875097771,0.1222563,81803.0,81802.0,0.1222546]
[1741875097971,0.1799,81803.0,81802.0,0.1222546]
[1741875098277,0.0611143,81821.0,81813.0,0.1222397]
[1741875098461,0.1799,81822.0,81813.0,0.1222397]
[1741875098668,0.061114,81821.0,81812.0,0.3788]
[1741875098876,0.1222397,81813.0,81812.0,0.3788]
[1741875099069,0.3082397,81813.0,81812.0,0.1828]
[1741875099275,0.3564,81820.0,81813.0,0.1222397]
[1741875099473,0.00218332,81814.0,81813.0,0.4993397]
[1741875099776,0.12542152,81814.0,81813.0,0.1948]
[1741875100077,0.12542152,81814.0,81813.0,0.1222397]
[1741875100078,0.12442152,81814.0,81813.0,0.1222397]
[1741875100272,0.00218332,81814.0,81813.0,0.1222397]
[1741875101371,0.00218332,81814.0,81810.0,0.05991714]
[1741875101578,0.00218332,81814.0,81813.0,0.1222397]
[1741875101777,0.00018332,81814.0,81813.0,0.1222397]
[1741875102371,0.00218332,81814.0,81813.0,0.1222397]
[1741875102875,0.00318332,81814.0,81813.0,0.1222397]
[1741875104079,2e-08,81814.0,81813.0,0.1322397]
[1741875104681,2e-08,81814.0,81813.0,0.3300397]
[1741875105281,2e-08,81814.0,81813.0,0.07326234]
[1741875105482,2e-08,81814.0,81813.0,0.19550204]
[1741875106079,0.00018332,81822.0,81821.0,0.1222277]
[1741875106781,0.061114,81821.0,81805.0,0.00018332]
[1741875106970,0.0611214,81811.0,81810.0,0.1222442]
[1741875107690,0.1833686,81811.0,81810.0,0.1222442]
[1741875108475,0.1857,81813.0,81812.0,0.1222412]
[1741875108774,0.3079397,81813.0,81812.0,0.1222412]
[1741875108973,0.1857,81813.0,81812.0,0.1222412]
[1741875109176,0.3079397,81813.0,81812.0,0.1222412]
[1741875109580,0.1857,81813.0,81812.0,0.1222412]
[1741875109770,0.1222457,81809.0,81808.0,0.2995465]
[1741875109974,0.1222457,81809.0,81808.0,0.1773]
[1741875110378,0.1222457,81809.0,81808.0,0.2995472]
[1741875110779,0.061122,81811.0,81807.0,0.3109481]
[1741875111080,0.1222472,81808.0,81807.0,0.1887]
[1741875111283,0.1222472,81808.0,81807.0,0.3109487]
[1741875111583,0.1222472,81808.0,81807.0,0.1887]
[1741875111777,0.1222472,81808.0,81807.0,0.3109487]
[1741875112383,0.1222347,81818.0,81817.0,0.1222307]
[1741875112587,0.6107471,81874.0,81816.0,0.0611169]
[1741875112588,0.17044,81827.0,81816.0,0.0611169]
[1741875112782,0.1222292,81820.0,81819.0,0.0611146]
[1741875112985,0.06294725,81823.0,81815.0,0.368]
[1741875112986,0.1222352,81816.0,81815.0,0.1771]
[1741875113288,0.1874,81821.0,81815.0,0.1771]
[1741875113580,0.1874,81821.0,81820.0,0.1222292]
[1741875113781,0.00018332,81822.0,81821.0,0.1222277]
[1741875113979,2e-08,81822.0,81821.0,0.4806277]
[1741875114176,2e-08,81822.0,81821.0,0.4906277]
[1741875114580,0.1,100000.0,81821.0,0.4906277]
[1741875114581,0.01372485,81854.0,81841.0,0.1221979]
[1741875114782,0.0610873,81857.0,81849.0,0.1221859]
[1741875114981,0.0610864,81858.0,81849.0,0.1221859]
[1741875115188,0.29676579,81850.0,81849.0,0.1221859]
[1741875115379,0.0610912,81852.0,81848.0,0.04401169]
[1741875115380,0.0610921,81851.0,81848.0,0.04401169]
[1741875115680,0.0611021,81837.0,81830.0,0.0611071]
[1741875115881,0.3086068,81836.0,81835.0,0.1222053]
[1741875116086,0.1222068,81836.0,81835.0,0.1222053]
[1741875116483,0.1833245,81832.0,81831.0,0.122205]
[1741875116683,0.1222173,81828.0,81827.0,0.00018332]
[1741875117082,0.1222173,81828.0,81816.0,0.1897]
[1741875117083,0.1222535,81806.0,81805.0,0.0611234]
[1741875117289,0.0611242,81808.0,81800.0,0.03794378]
[1741875117290,0.1222561,81802.0,81801.0,0.3119556]
[1741875117784,0.27803171,81820.0,81801.0,0.1897]
[1741875117990,0.0611133,81822.0,81814.0,0.0611177]
[1741875118189,0.18353612,81819.0,81818.0,0.1833446]
[1741875118490,0.00018332,81819.0,81818.0,0.0611154]
[1741875118992,0.001,81836.0,81818.0,0.76164714]
[1741875119290,0.0009068,81836.0,81835.0,0.1222068]
[1741875119486,0.1231121,81836.0,81835.0,0.13382656]
[1741875119686,0.1849,81848.0,81842.0,0.1832893]
[1741875119889,0.0610959,81845.0,81844.0,0.1221934]
[1741875120088,0.0610959,81845.0,81844.0,0.01161976]
[1741875120295,0.1222038,81837.0,81836.0,0.00018332]
[1741875120491,0.1222038,81837.0,81836.0,0.12238742]
[1741875120688,0.1778,81839.0,81836.0,0.00018332]
[1741875120892,0.1222038,81837.0,81836.0,0.00018332]
[1741875121490,0.3697,81838.0,81825.0,0.1222159]
[1741875121491,0.1833371,81826.0,81825.0,0.1222159]
[1741875121793,0.303606,81836.0,81835.0,0.1222068]
[1741875122188,0.4919053,81836.0,81835.0,0.1222068]
[1741875122590,0.3697,81836.0,81833.0,0.0611044]
[1741875122785,0.1222128,81831.0,81830.0,0.1768]
[1741875122994,0.1222128,81831.0,81830.0,0.2990143]
[1741875123191,0.1222173,81828.0,81827.0,0.00018332]
[1741875124187,0.3059173,81828.0,81827.0,0.00018332]
[1741875124881,0.1222397,81813.0,81812.0,0.3065402]
[1741875125086,0.1222397,81813.0,81812.0,0.3065412]
[1741875125381,0.1222397,81813.0,81812.0,0.1843]
[1741875125582,0.1222397,81813.0,81812.0,0.3065412]
[1741875126293,0.363,81818.0,81814.0,0.122234]
[1741875126294,0.1793,81818.0,81814.0,0.122234]
[1741875126493,0.244819,81815.0,81796.0,0.17036]
[1741875126690,0.1957,81814.0,81807.0,0.0611224]
[1741875126902,0.1957,81814.0,81813.0,0.1222397]
[1741875127088,0.12241172,81821.0,81820.0,0.1222292]
[1741875127284,0.00018332,81821.0,81804.0,0.01320124]
[1741875127592,0.1222576,81801.0,81800.0,0.03794378]
[1741875128385,0.1222816,81787.0,81786.0,0.1834111]
[1741875128786,0.1222761,81789.0,81788.0,0.1222756]
[1741875128991,0.00018332,81795.0,81794.0,0.1222681]
[1741875129289,0.00018332,81795.0,81791.0,0.0611356]
[1741875129290,0.1222729,81794.0,81793.0,0.1222681]
[1741875129593,0.1799,81794.0,81793.0,0.1222681]
[1741875129900,0.17750498,81822.0,81801.0,0.6112876]
[1741875130204,0.1799,81814.0,81813.0,0.1222397]
[1741875130995,0.1799,81814.0,81813.0,0.4810397]
[1741875131185,0.1776883,81822.0,81821.0,0.1222277]
[1741875131900,0.01322817,81859.0,81821.0,0.9352645]
[1741875132197,0.32392526,81857.0,81830.0,0.21127312]
[1741875132387,0.3610669,81856.0,81834.0,0.0611038]
[1741875132590,0.1221839,81851.0,81850.0,0.1221806]
[1741875132786,0.1832705,81854.0,81853.0,0.12218]
[1741875132990,0.1829,81855.0,81849.0,0.1788]
[1741875132991,0.1221844,81850.0,81849.0,0.1788]
[1741875133199,0.1221844,81850.0,81842.0,0.00018332]
[1741875133200,0.0610914,81851.0,81842.0,0.00018332]
[1741875133496,0.6107841,81869.0,81842.0,0.00018332]
[1741875133497,0.30624315,81873.0,81856.0,0.1221755]
[1741875133688,0.1778,81858.0,81849.0,0.0610925]
[1741875133893,0.1778,81858.0,81844.0,0.0610966]
[1741875133894,0.0610885,81855.0,81850.0,0.1792]
[1741875134093,0.1221814,81852.0,81851.0,0.1883]
[1741875134292,0.2388898,81854.0,81851.0,0.1883]
[1741875134293,0.1778,81854.0,81853.0,0.12218]
[1741875134498,0.1778,81854.0,81851.0,0.5507729]
[1741875134689,0.1221814,81852.0,81851.0,0.3104829]
[1741875134891,0.2999793,81854.0,81851.0,0.3715737]
[1741875135090,0.2999793,81854.0,81853.0,0.12218]
[1741875135292,0.1778,81854.0,81853.0,0.12218]
[1741875135604,0.3049785,81854.0,81853.0,0.001]
[1741875135800,0.1828,81854.0,81853.0,0.001]
[1741875136002,0.1828,81854.0,81853.0,0.12318]
[1741875136208,0.3039785,81854.0,81853.0,0.12218]
[1741875136404,0.004,81854.0,81853.0,0.12218]
[1741875136601,0.004,81854.0,81853.0,0.48318]
[1741875137407,0.1853,81870.0,81853.0,0.48318]
[1741875137408,0.0610643,81888.0,81853.0,0.97256948]
[1741875137712,0.1853,81883.0,81878.0,0.1221427]
[1741875138003,0.35354183,81893.0,81878.0,0.86972]
[1741875138302,0.19934808,81935.0,81879.0,1.24247135]
[1741875138502,0.1759,81934.0,81900.0,0.27893135]
[1741875138803,0.0001832,81915.0,81901.0,0.52582]
[1741875138996,0.0001832,81915.0,81909.0,0.0001832]
[1741875139505,0.0610455,81913.0,81909.0,0.0001832]
[1741875139802,0.0001832,81915.0,81909.0,0.0001832]
[1741875140000,0.0001832,81915.0,81914.0,0.122089]
[1741875141211,0.47472656,81950.0,81918.0,0.0610411]
[1741875141502,0.47472656,81950.0,81914.0,0.30236372]
[1741875141503,0.3001643,81931.0,81920.0,0.0610398]
[1741875141703,0.3001642,81931.0,81925.0,0.1220714]
[1741875141898,0.1781,81931.0,81921.0,0.1774]
[1741875142209,0.122077,81922.0,81921.0,0.1774]
[1741875142595,0.0610357,81926.0,81919.0,0.1932]
[1741875142596,0.1220799,81921.0,81919.0,0.1932]
[1741875142795,0.1829,81930.0,81919.0,0.1932]
[1741875142796,0.30018,81920.0,81919.0,0.1932]
[1741875143103,0.1220815,81919.0,81918.0,0.00018308]
[1741875143294,0.3060815,81919.0,81918.0,0.00018308]
[1741875143498,1.8060815,81919.0,81918.0,0.00018308]
[1741875143694,1.684,81919.0,81899.0,0.1774]
[1741875143905,0.34834,81918.0,81899.0,0.3529]
[1741875144097,0.122088,81915.0,81911.0,0.1220923]
[1741875144300,0.1782,81914.0,81899.0,0.3529]
[1741875144503,0.3622,81914.0,81913.0,0.1220905]
[1741875144804,1.50084,81919.0,81918.0,0.122083]
[1741875145002,0.00018308,81922.0,81906.0,0.1755]
[1741875145215,0.1220835,81919.0,81918.0,0.1220806]
[1741875145408,1.5,81921.0,81916.0,0.1220846]
[1741875145707,0.48628,81920.0,81919.0,0.1220815]
[1741875146009,0.122083,81919.0,81918.0,0.1220824]
[1741875146212,0.3642,81920.0,81917.0,0.2358417]
[1741875146407,0.00018308,81922.0,81920.0,0.12208]
[1741875146705,0.00018308,81922.0,81921.0,0.2968785]
[1741875146896,0.00018308,81922.0,81921.0,0.1748]
[1741875147099,0.00018308,81922.0,81917.0,0.1845]
[1741875147100,0.1220897,81914.0,81905.0,0.17038308]
[1741875147306,0.191,81913.0,81912.0,0.122092]
[1741875147505,0.191,81913.0,81908.0,0.0610483]
[1741875147705,0.1221009,81906.0,81905.0,0.00018308]
[1741875148113,0.1221009,81906.0,81827.0,0.611094]
[1741875148114,0.15,81906.0,81879.0,0.185]
[1741875148305,0.27893135,81904.0,81879.0,0.185]
[1741875148501,0.3789,81903.0,81902.0,0.1221069]
[1741875148806,0.5010054,81903.0,81902.0,0.1221069]
[1741875149005,0.3789,81903.0,81898.0,0.1221124]
[1741875149204,0.3789,81903.0,81880.0,0.46863135]
[1741875149205,0.122121,81893.0,81892.0,0.1221211]
[1741875149507,0.1221203,81893.0,81892.0,0.00018308]
[1741875150116,0.3131203,81893.0,81892.0,0.00018308]
[1741875150804,0.1221397,81880.0,81879.0,1e-07]
[1741875151004,0.122171,81859.0,81858.0,0.1897]
[1741875151204,0.0610846,81861.0,81856.0,0.1221754]
[1741875151400,0.1815,81860.0,81856.0,0.1221754]
[1741875151607,0.1851,81865.0,81864.0,0.1221635]
[1741875151912,0.0001832,81873.0,81872.0,0.1221516]
[1741875152313,0.3666,81892.0,81871.0,0.3652]
[1741875152503,0.0001832,81881.0,81878.0,0.122142]
[1741875152719,0.0001832,81881.0,81880.0,0.1221397]
[1741875152910,0.1221397,81880.0,81879.0,0.1892]
[1741875153104,0.1221433,81878.0,81877.0,0.1221439]
[1741875153412,0.1221433,81878.0,81871.0,0.237076]
[1741875153413,0.1221501,81873.0,81872.0,0.3113516]
[1741875153713,0.1221501,81873.0,81872.0,0.3113509]
[1741875154113,0.0610742,81875.0,81872.0,0.3113509]
[1741875154114,0.1221478,81875.0,81874.0,0.1221486]
[1741875154304,0.1221472,81875.0,81872.0,0.2502752]
[1741875154510,0.1763,81874.0,81873.0,0.1221501]
[1741875154815,0.005,81873.0,81872.0,0.1892]
[1741875155017,0.005,81873.0,81872.0,0.3113516]
[1741875156008,0.1783,81890.0,81880.0,0.1221397]
[1741875156213,0.1763,81894.0,81880.0,0.1221397]
[1741875156409,0.1763,81894.0,81880.0,0.01]
[1741875156611,0.1783,81901.0,81880.0,0.44294823]